fUSD/lending_fUSD_20250306
["ID","MTS","AMOUNT","RATE_DAILY","PERIOD"]
[355558814,1741279842730,-134738.41808006,0.00010737,2]
[355558815,1741279842772,-2325.50675361,0.00010737,2]
[355558820,1741279843650,-8485.248096,0.00010737,2]
[355558821,1741279843661,-87314.60539654,0.00010737,2]
[355558822,1741279843672,-422.54166336,0.00010737,2]
[355558823,1741279843683,-5766.17478965,0.00010737,2]
[355558824,1741279843694,-2745.4001,0.00010737,2]
[355558834,1741279845722,-2914.2999998,0.00010737,2]
[355558835,1741279845734,-15035.00369418,0.00010737,2]
[355558836,1741279845778,-16821.30340453,0.00010737,2]
[355558837,1741279845883,-974.9999998,0.00010737,2]
[355558838,1741279906409,23453.74,0.00010043,2]
[355558839,1741279913853,512.01,0.000139,31]
[355558840,1741279913914,512.01,0.000139,31]
[355558841,1741279914028,512.01,0.000139,31]
[355558842,1741279914089,512.01,0.000139,31]
[355558843,1741279914160,512.01,0.000139,31]
[355558844,1741279914218,512.01,0.000139,31]
[355558845,1741279914264,512.01,0.000139,31]
[355558846,1741279914335,512.01,0.000139,31]
[355558847,1741279914387,512.01,0.000139,31]
[355558848,1741279914471,512.01,0.000139,31]
[355558849,1741279914526,512.01,0.000139,31]
[355558850,1741279914590,512.01,0.000139,31]
[355558851,1741279914646,512.01,0.000139,31]
[355558852,1741279914704,512.01,0.000139,31]
[355558853,1741279914755,512.01,0.000139,31]
[355558854,1741279914814,512.01,0.000139,31]
[355558855,1741279991190,2000.0,9.971e-05,2]
[355558856,1741280158431,2000.0,9.935e-05,2]
[355558857,1741280186664,230.11,9.935e-05,2]
[355558858,1741280186833,230.11,9.977e-05,2]
[355558859,1741280187086,230.11,0.00010019,2]
[355558860,1741280187425,230.11,0.00010061,2]
[355558861,1741280187680,230.11,0.00010103,2]
[355558862,1741280187877,230.11,0.00010144,2]
[355558863,1741280188093,230.11,0.00010186,2]
[355558864,1741280188349,230.11,0.00010228,2]
[355558865,1741280220311,698.11,8.219e-05,2]
[355558866,1741280241054,1251.82,9.696e-05,2]
[355558867,1741280437477,998.25,9.642e-05,2]
[355558868,1741280525982,430.13,0.000139,31]
[355558869,1741280526052,430.13,0.000139,31]
[355558870,1741280526094,430.13,0.000139,31]
[355558871,1741280526125,430.13,0.000139,31]
[355558872,1741280526175,430.13,0.000139,31]
[355558873,1741280526236,430.13,0.000139,31]
[355558874,1741280526296,430.13,0.000139,31]
[355558875,1741280526356,430.13,0.000139,31]
[355558876,1741280526416,430.13,0.000139,31]
[355558877,1741280526478,430.13,0.000139,31]
[355558878,1741280526550,430.13,0.000139,31]
[355558879,1741280526605,430.13,0.000139,31]
[355558880,1741280526664,430.13,0.000139,31]
[355558881,1741280526731,430.13,0.000139,31]
[355558882,1741280526788,430.13,0.000139,31]
[355558883,1741280526831,430.13,0.000139,31]
[355558884,1741280788434,1000.0,9.623e-05,2]
[355558911,1741281031767,-230.11,0.0001027,2]
[355558912,1741281031777,-132.39,0.00010271,2]
[355558913,1741281031789,-17.61,0.00010271,2]
[355558914,1741281031798,-437.79,0.00010272,2]
[355558915,1741281031810,-112.21,0.00010272,2]
[355558916,1741281031819,-230.11,0.00010312,2]
[355558917,1741281031829,-230.11,0.00010354,2]
[355558918,1741281031839,-230.11,0.00010395,2]
[355558919,1741281031849,-153.29,0.00010437,2]
[355558920,1741281031859,-230.11,0.00010437,2]
[355558921,1741281031869,-300.0,0.0001046,2]
[355558922,1741281031879,-150.0,0.00010461,2]
[355558923,1741281031888,-299.99,0.00010461,2]
[355558924,1741281031903,-7638.09715049,0.00010461,2]
[355558925,1741281031921,-893.89,0.00010461,2]
[355558926,1741281031935,-923.95,0.00010461,2]
[355558927,1741281031947,-3288.60267064,0.00010461,2]
[355558928,1741281031959,-1122.40017887,0.00010461,2]
[355558929,1741281031970,-698.11,0.00010462,2]
[355558930,1741281031979,-29999.99,0.00010462,2]
[355558931,1741281031989,-909.49,0.00010462,2]
[355558932,1741281031999,-230.11,0.00010479,2]
[355558933,1741281032008,-2000.0,0.000105,2]
[355558934,1741281032019,-230.11,0.00010521,2]
[355558935,1741281032028,-209.9403951,0.00010522,2]
[355558936,1741281032038,-230.11,0.00010563,2]
[355558937,1741281032047,-500.0,0.00010603,2]
[355558938,1741281032056,-230.11,0.00010605,2]
[355558939,1741281032066,-2772.18574,0.0001063,2]
[355558940,1741281032075,-2049.3753,0.00010634,2]
[355558941,1741281032085,-1114.656,0.00010634,2]
[355558942,1741281032094,-1206.0,0.00010634,2]
[355558943,1741281032104,-4523.4816,0.00010638,2]
[355558944,1741281032114,-2163.1079,0.00010638,2]
[355558945,1741281032123,-12093.4129,0.00010638,2]
[355558946,1741281032133,-313.4072,0.00010638,2]
[355558947,1741281032142,-1000.0,0.00010638,2]
[355558948,1741281032153,-1238.2,0.00010638,2]
[355558950,1741281032163,-720.45481418,0.00010641,2]
[355558952,1741281032172,-4706.3001204,0.00010641,2]
[355558954,1741281032182,-250.0,0.00010644,2]
[355558955,1741281032192,-230.11,0.00010646,2]
[355558956,1741281032202,-230.11,0.00010688,2]
[355558957,1741281032211,-230.11,0.0001073,2]
[355558958,1741281032221,-2010.4233624,0.00010734,2]
[355558959,1741281032230,-3829.38108905,0.00010734,2]
[355558960,1741281032242,-1697.62240799,0.00010734,2]
[355558961,1741281032253,-48.06785116,0.00010734,2]
[355558962,1741281032263,-500.0,0.00010736,2]
[355558964,1741281032272,-500.0,0.00010736,2]
[355558966,1741281032281,-548.05475944,0.00010736,2]
[355558968,1741281032290,-294.97633452,0.00010736,2]
[355558970,1741281032300,-1121.72,0.00010737,2]
[355558972,1741281032310,-106.05605488,0.00010737,2]
[355558974,1741281032321,-354.55891309,0.00010737,2]
[355558977,1741281032333,-1495.38503203,0.00010737,2]
[355558978,1741281032342,-1988.01893688,0.00010737,2]
[355558980,1741281032375,-40215.85521843,0.00010737,2]
[355558982,1741281032387,-1836.73213161,0.00010737,2]
[355558996,1741281037607,-18135.68698298,0.00010737,2]
[355558997,1741281037770,-253.73136155,0.00010737,2]
[355558998,1741281037782,-411.93182001,0.00010737,2]
[355558999,1741281037868,-26282.62173152,0.00010737,2]
[355559000,1741281037888,-1627.22029555,0.00010737,2]
[355559001,1741281037901,-4472.55,0.00010737,2]
[355559002,1741281037956,-8005.04084799,0.00010737,2]
[355559003,1741281037968,-626.69379406,0.00010737,2]
[355559026,1741281039789,-358.896,0.00010737,2]
[355559033,1741281039845,-996.2726181,0.00010737,2]
[355559040,1741281039900,-43403.84709875,0.00010737,2]
[355559042,1741281039915,-2446.1294527,0.00010737,2]
[355559062,1741281040103,-1542.196378,0.00010737,2]
[355559068,1741281040153,-14500.00000174,0.00010737,2]
[355559072,1741281040189,-629.23687052,0.00010737,2]
[355559370,1741281042821,-1335.76312948,0.00010737,2]
[355559371,1741281042831,-4911.60667052,0.00010737,2]
[355559389,1741281044549,-929.3718791,0.00010737,2]
[355559448,1741281045858,-438.865,0.00010737,2]
[355559456,1741281045914,-592.46048001,0.00010737,2]
[355559457,1741281045929,-525.63491664,0.00010737,2]
[355559458,1741281045942,-1033.75000009,0.00010737,2]
[355559460,1741281045954,-398.24495599,0.00010737,2]
[355559463,1741281045966,-2212.500005,0.00010737,2]
[355559472,1741281046022,-1780.712,0.00010737,2]
[355559474,1741281046034,-165109.12756107,0.00010737,2]
[355559475,1741281046045,-35796.6,0.00010737,2]
[355559476,1741281046078,-3252.49990083,0.00010737,2]
[355559477,1741281046133,-8905.5,0.00010737,2]
[355559482,1741281138205,361.34,0.000139,31]
[355559483,1741281138253,361.34,0.000139,31]
[355559484,1741281138344,361.34,0.000139,31]
[355559485,1741281138393,361.34,0.000139,31]
[355559486,1741281138456,361.34,0.000139,31]
[355559487,1741281138528,361.34,0.000139,31]
[355559488,1741281138566,361.34,0.000139,31]
[355559489,1741281138616,361.34,0.000139,31]
[355559490,1741281138681,361.34,0.000139,31]
[355559491,1741281139298,361.34,0.000139,31]
[355559492,1741281139337,361.34,0.000139,31]
[355559493,1741281139384,361.34,0.000139,31]
[355559494,1741281139420,361.34,0.000139,31]
[355559495,1741281139463,361.34,0.000139,31]
[355559496,1741281139516,361.34,0.000139,31]
[355559497,1741281139553,361.34,0.000139,31]
[355559498,1741281199593,2000.0,9.89e-05,2]
[355559499,1741281227241,2000.0,9.875e-05,2]
[355559500,1741281313283,162.77,9.879e-05,2]
[355559501,1741281313510,162.77,9.92e-05,2]
[355559502,1741281313784,162.77,9.962e-05,2]
[355559503,1741281314013,162.77,0.00010004,2]
[355559504,1741281314242,162.77,0.00010045,2]
[355559505,1741281314468,162.77,0.00010087,2]
[355559506,1741281314702,162.77,0.00010128,2]
[355559507,1741281314919,162.77,0.0001017,2]
[355559508,1741281315143,162.77,0.00010211,2]
[355559509,1741281346487,168.32,9.999e-05,2]
[355559510,1741281387500,675.0,8.219e-05,2]
[355559511,1741281410602,359.59,9.722e-05,2]
[355559512,1741281690165,1176.06,9.621e-05,2]
[355559513,1741281750272,303.56,0.000139,31]
[355559514,1741281750338,303.56,0.000139,31]
[355559515,1741281750389,303.56,0.000139,31]
[355559516,1741281750455,303.56,0.000139,31]
[355559517,1741281750516,303.56,0.000139,31]
[355559518,1741281750574,303.56,0.000139,31]
[355559519,1741281750642,303.56,0.000139,31]
[355559520,1741281750694,303.56,0.000139,31]
[355559521,1741281750759,303.56,0.000139,31]
[355559522,1741281750812,303.56,0.000139,31]
[355559523,1741281750879,303.56,0.000139,31]
[355559524,1741281750940,303.56,0.000139,31]
[355559525,1741281751006,303.56,0.000139,31]
[355559526,1741281751066,303.56,0.000139,31]
[355559527,1741281751125,303.56,0.000139,31]
[355559528,1741281751242,303.56,0.000139,31]
[355559529,1741281830333,250.0,9.594e-05,2]
[355559530,1741281908266,664194.60984517,0.0001,2]
[355559535,1741282084345,1371.6,9.584e-05,2]
[355559541,1741282091451,1000.0,9.584e-05,2]
[355559544,1741282140400,-162.77,0.00010253,2]
[355559545,1741282140430,-150.0,0.00010258,2]
[355559546,1741282140460,-550.0,0.00010263,2]
[355559547,1741282140491,-162.77,0.00010295,2]
[355559548,1741282140520,-162.77,0.00010336,2]
[355559549,1741282140549,-162.77,0.00010378,2]
[355559550,1741282140581,-150.0,0.00010396,2]
[355559551,1741282140609,-90.17812248,0.00010396,2]
[355559552,1741282140648,-909.82187752,0.00010396,2]
[355559553,1741282140676,-681.43624496,0.00010397,2]
[355559554,1741282140714,-1591.25812248,0.00010397,2]
[355559555,1741282140746,-1591.25812248,0.00010397,2]
[355559556,1741282140786,-349.11436343,0.00010397,2]
[355559557,1741282140821,-1591.25812248,0.00010397,2]
[355559558,1741282144269,-300.0,0.00010396,2]
[355559559,1741282144307,-1291.25812248,0.00010397,2]
[355559560,1741282165435,-776.10402819,0.00010298,2]
[355559583,1741282231986,-203.65242305,0.00010297,2]
[355559584,1741282231995,-166.38780319,0.00010297,2]
[355559585,1741282232013,-133.61219681,0.00010297,2]
[355559586,1741282232023,-550.0,0.00010298,2]
[355559587,1741282232032,-203.65242304,0.00010308,2]
[355559588,1741282232041,-26058.41515112,0.00010319,2]
[355559589,1741282232051,-203.65242304,0.00010319,2]
[355559590,1741282232060,-150.0,0.00010396,2]
[355559591,1741282232070,-10265.29780599,0.00010397,2]
[355559592,1741282232081,-35028.49250743,0.00010397,2]
[355559593,1741282232091,-344.86358133,0.00010402,2]
[355559594,1741282232101,-162.77,0.00010419,2]
[355559595,1741282232110,-153.29,0.00010437,2]
[355559596,1741282232120,-675.0,0.00010457,2]
[355559597,1741282232130,-162.77,0.00010461,2]
[355559598,1741282232139,-501.73194383,0.00010473,2]
[355559599,1741282232149,-160.24887061,0.00010473,2]
[355559600,1741282232158,-160.85356953,0.00010473,2]
[355559601,1741282232168,-500.37438428,0.00010473,2]
[355559602,1741282232178,-363.46130616,0.00010473,2]
[355559603,1741282232187,-150.0,0.00010497,2]
[355559604,1741282232197,-2642.18487018,0.000105,2]
[355559605,1741282232575,-895.31978598,0.000105,2]
[355559609,1741282232609,-36769.54618685,0.000105,2]
[355559612,1741282232631,-12945.1542,0.000105,2]
[355559615,1741282232656,-8986.17194788,0.000105,2]
[355559616,1741282232668,-585.17802667,0.000105,2]
[355559617,1741282232684,-1782.07656738,0.000105,2]
[355559618,1741282232721,-345.2004754,0.000105,2]
[355559619,1741282232770,-1190.87951664,0.000105,2]
[355559622,1741282237985,-158.22426979,0.00010473,2]
[355559623,1741282237995,-193.2731185,0.0001049,2]
[355559624,1741282238005,-538.18261171,0.000105,2]
[355559625,1741282238045,-2182.68788375,0.000105,2]
[355559626,1741282238058,-4460.34472192,0.000105,2]
[355559627,1741282238107,-2045.58562423,0.000105,2]
[355559749,1741282239960,-160.28363831,0.00010473,2]
[355559750,1741282239970,-155.02892616,0.00010473,2]
[355559751,1741282239979,-79355.85980114,0.000105,2]
[355559752,1741282240107,-27689.29045053,0.000105,2]
[355559753,1741282240119,-80342.64237303,0.000105,2]
[355559754,1741282240187,-349.14272476,0.000105,2]
[355559755,1741282240245,-3748.18676516,0.000105,2]
[355559756,1741282240257,-2104.79837284,0.000105,2]
[355559757,1741282240302,-88681.7328,0.000105,2]
[355559758,1741282240316,-980.276366,0.000105,2]
[355559819,1741282243128,-62023.96870435,0.000105,2]
[355559827,1741282243199,-694.16999999,0.000105,2]
[355559829,1741282243222,-4122.47781055,0.000105,2]
[355559858,1741282246050,-83879.34437139,0.000105,2]
[355559859,1741282246109,-1009.73221652,0.000105,2]
[355559860,1741282246137,-9322.20140954,0.000105,2]
[355559861,1741282246148,-93481.38892531,0.000105,2]
[355559862,1741282246159,-863.38885763,0.000105,2]
[355559863,1741282246169,-890.07,0.000105,2]
[355559865,1741282259314,44850.77005536,0.000102,2]
[355559866,1741282362345,255.01,0.000139,31]
[355559867,1741282362397,255.01,0.000139,31]
[355559868,1741282362457,255.01,0.000139,31]
[355559869,1741282362530,255.01,0.000139,31]
[355559870,1741282362573,255.01,0.000139,31]
[355559871,1741282362653,255.01,0.000139,31]
[355559872,1741282362705,255.01,0.000139,31]
[355559873,1741282362753,255.01,0.000139,31]
[355559874,1741282362823,255.01,0.000139,31]
[355559875,1741282362888,255.01,0.000139,31]
[355559876,1741282363017,255.01,0.000139,31]
[355559877,1741282363073,255.01,0.000139,31]
[355559878,1741282363133,255.01,0.000139,31]
[355559879,1741282363183,255.01,0.000139,31]
[355559880,1741282363490,255.01,0.000139,31]
[355559881,1741282363528,255.01,0.000139,31]
[355559882,1741282369848,373.42,9.637e-05,2]
[355559883,1741282432703,707.45103305,9.642e-05,2]
[355559884,1741282432731,1026.4388548,9.642e-05,2]
[355559885,1741282432760,971.43006041,9.642e-05,2]
[355559886,1741282432786,21194.68005174,9.642e-05,2]
[355559887,1741282509726,317.46,9.633e-05,2]
[355559888,1741282729508,649.53,8.219e-05,2]
[355559889,1741282829262,-441.0,0.00011803,10]
[355559890,1741282868461,474.45,9.59e-05,2]
[355559891,1741282944256,150.0,9.978e-05,2]
[355559892,1741282974422,214.23,0.000139,31]
[355559893,1741282974489,214.23,0.000139,31]
[355559894,1741282974543,214.23,0.000139,31]
[355559895,1741282974610,214.23,0.000139,31]
[355559896,1741282974662,214.23,0.000139,31]
[355559897,1741282974725,214.23,0.000139,31]
[355559898,1741282974785,214.23,0.000139,31]
[355559899,1741282974847,214.23,0.000139,31]
[355559900,1741282974906,214.23,0.000139,31]
[355559901,1741282974986,214.23,0.000139,31]
[355559902,1741282975064,214.23,0.000139,31]
[355559903,1741282975112,214.23,0.000139,31]
[355559904,1741282975153,214.23,0.000139,31]
[355559905,1741282975214,214.23,0.000139,31]
[355559906,1741282975312,214.23,0.000139,31]
[355559907,1741282975351,214.23,0.000139,31]
[355559908,1741283131941,1185.76,9.591e-05,2]
[355559909,1741283165872,1000.0,9.591e-05,2]
[355559910,1741283349688,250.0,9.657e-05,2]
[355559911,1741283388365,158.24,9.637e-05,2]
[355559924,1741283432363,-609.03061452,0.000103,2]
[355559925,1741283432373,-779.1761,0.000103,2]
[355559926,1741283432383,-1766.5094,0.000103,2]
[355559927,1741283432392,-380.55562548,0.00010345,2]
[355559928,1741283432404,-169.44437452,0.00010345,2]
[355559929,1741283432414,-5264.05002477,0.0001039,2]
[355559930,1741283432423,-867.79833198,0.00010399,2]
[355559931,1741283432432,-150.0,0.00010399,2]
[355559932,1741283432441,-3100.0,0.000104,2]
[355559933,1741283432451,-500.0,0.000104,2]
[355559934,1741283432460,-5000.0,0.000104,2]
[355559935,1741283432470,-1200.0868,0.000104,2]
[355559936,1741283432479,-14463.3977,0.000104,2]
[355559937,1741283432488,-161.0177904,0.000104,2]
[355559938,1741283432498,-1806.3342,0.000104,2]
[355559939,1741283432508,-1856.81076826,0.000104,2]
[355559940,1741283432533,-52.35013174,0.000104,2]
[355559941,1741283432543,-28444.7896,0.000104,2]
[355559942,1741283432552,-3509.5044,0.000104,2]
[355559943,1741283432562,-834.1244,0.000104,2]
[355559945,1741283432572,-299947.0331,0.000104,2]
[355559946,1741283432581,-1471.148,0.000104,2]
[355559948,1741283432591,-250.7757,0.000104,2]
[355559951,1741283432603,-165.11398895,0.000104,2]
[355559953,1741283432616,-603.795,0.000104,2]
[355559955,1741283432626,-223.33562076,0.000104,2]
[355559956,1741283432636,-330.57771424,0.000104,2]
[355559958,1741283432646,-649.53,0.00010456,2]
[355559960,1741283432656,-152.89159603,0.00010473,2]
[355559963,1741283432666,-500.0,0.00010473,2]
[355559964,1741283432676,-165.47045952,0.00010473,2]
[355559967,1741283432686,-160.23550353,0.00010473,2]
[355559968,1741283432696,-210.09459992,0.00010473,2]
[355559971,1741283432706,-351.62555689,0.00010473,2]
[355559972,1741283432716,-156.78483762,0.00010473,2]
[355559974,1741283432725,-152.68947254,0.00010473,2]
[355559976,1741283432734,-160.24887218,0.00010473,2]
[355559978,1741283432743,-159.13362134,0.00010473,2]
[355559980,1741283432753,-151.27790415,0.00010473,2]
[355559982,1741283432762,-500.0,0.00010473,2]
[355559984,1741283432771,-160.07357237,0.00010473,2]
[355559986,1741283432780,-238.37608256,0.00010473,2]
[355559989,1741283432789,-191.41304537,0.0001049,2]
[355559992,1741283432798,-206.8236077,0.00010499,2]
[355559997,1741283432810,-186.77216827,0.00010499,2]
[355560000,1741283432819,-500.0,0.00010499,2]
[355560003,1741283432829,-280.12837191,0.00010499,2]
[355560006,1741283432838,-500.0,0.00010499,2]
[355560009,1741283432849,-500.0,0.00010499,2]
[355560012,1741283432858,-500.0,0.00010499,2]
[355560015,1741283432867,-500.0,0.00010499,2]
[355560018,1741283432877,-500.0,0.00010499,2]
[355560021,1741283432886,-367.50228207,0.00010499,2]
[355560060,1741283433254,-132.49771793,0.00010499,2]
[355560061,1741283433264,-500.0,0.00010499,2]
[355560062,1741283433274,-500.0,0.00010499,2]
[355560063,1741283433284,-500.0,0.00010499,2]
[355560064,1741283433293,-500.0,0.00010499,2]
[355560065,1741283433303,-500.0,0.00010499,2]
[355560066,1741283433312,-499.9917443,0.00010499,2]
[355560067,1741283433322,-196.12642721,0.00010499,2]
[355560069,1741283433332,-500.0,0.00010499,2]
[355560070,1741283433342,-21756.12911056,0.000105,2]
[355560071,1741283433365,-6638.67174793,0.000105,2]
[355560072,1741283433377,-24042.61756843,0.000105,2]
[355560073,1741283433396,-2562.8603,0.000105,2]
[355560080,1741283438123,-500.0,0.00010473,2]
[355560081,1741283438133,-151.28504681,0.00010473,2]
[355560082,1741283438142,-4667.40773762,0.000105,2]
[355560083,1741283438156,-30400.42004844,0.000105,2]
[355560084,1741283438168,-469.17537558,0.000105,2]
[355560085,1741283438183,-968.52000245,0.000105,2]
[355560086,1741283438235,-3947.10568878,0.000105,2]
[355560087,1741283438247,-593.11979836,0.000105,2]
[355560088,1741283438291,-3097.96170744,0.000105,2]
[355560089,1741283438303,-6224.572055,0.000105,2]
[355560090,1741283438314,-9547.37304,0.000105,2]
[355560091,1741283438325,-11290.77293608,0.000105,2]
[355560092,1741283438336,-12266.93049177,0.000105,2]
[355560109,1741283440289,-242566.95577015,0.000105,2]
[355560110,1741283440301,-8834.2,0.000105,2]
[355560111,1741283440312,-2033.00017683,0.000105,2]
[355560112,1741283440331,-171192.11785817,0.000105,2]
[355560113,1741283440342,-420.42,0.000105,2]
[355560114,1741283440354,-8896.6,0.000105,2]
[355560115,1741283440387,-5165.91097851,0.000105,2]
[355560116,1741283440485,-511.98229005,0.000105,2]
[355560117,1741283440545,-576.88430497,0.000105,2]
[355560118,1741283440557,-2302.1013757,0.000105,2]
[355560119,1741283440568,-972.72558006,0.000105,2]
[355560120,1741283440670,-354.042,0.000105,2]
[355560123,1741283441200,273.92,9.774e-05,2]
[355560124,1741283442043,2000.0,9.774e-05,2]
[355560147,1741283443193,-529.70946483,0.000105,2]
[355560150,1741283443580,-103558.81201571,0.000105,2]
[355560151,1741283443592,-890.58,0.000105,2]
[355560152,1741283443604,-20825.198826,0.000105,2]
[355560153,1741283443619,-42250.89359999,0.000105,2]
[355560154,1741283443635,-10669.53629202,0.000105,2]
[355560155,1741283443647,-9985.85417661,0.000105,2]
[355560156,1741283443658,-4931.79826,0.000105,2]
[355560157,1741283443669,-993.34564999,0.000105,2]
[355560158,1741283444690,-438.60309297,0.000105,2]
[355560162,1741283446212,-420.46513501,0.000105,2]
[355560163,1741283446240,-505.97990098,0.000105,2]
[355560164,1741283446515,-361597.27744735,0.000105,2]
[355560165,1741283446525,-433.0,0.000105,2]
[355560166,1741283446535,-2310.15478,0.000105,2]
[355560167,1741283446545,-162.77,0.00010503,2]
[355560168,1741283446554,-157.4552963,0.00010522,2]
[355560170,1741283446564,-1370.76199959,0.00010538,2]
[355560171,1741283446574,-578.47609835,0.00010538,2]
[355560172,1741283446583,-162.77,0.00010544,2]
[355560173,1741283446594,-500.0,0.00010548,2]
[355560174,1741283446604,-1877.0,0.00010558,2]
[355560175,1741283446624,-5567.45034269,0.00010565,2]
[355560176,1741283446634,-162.77,0.00010586,2]
[355560177,1741283446644,-3488.46590126,0.00010594,2]
[355560178,1741283446655,-41671.50863027,0.00010595,2]
[355560179,1741283446678,-10544.76215186,0.00010595,2]
[355560180,1741283446688,-52216.27078213,0.00010595,2]
[355560181,1741283446697,-52216.27078213,0.00010595,2]
[355560182,1741283446707,-4324.75530659,0.00010615,2]
[355560183,1741283446716,-787.13713067,0.0001062,2]
[355560184,1741283446725,-6360.57683976,0.00010621,2]
[355560185,1741283446735,-327.96401495,0.00010621,2]
[355560186,1741283446744,-3488.46590126,0.00010623,2]
[355560187,1741283446753,-2120.23397145,0.00010625,2]
[355560188,1741283446762,-162.77,0.00010627,2]
[355560189,1741283446772,-199.0,0.0001063,2]
[355560190,1741283446782,-2120.23397145,0.00010632,2]
[355560191,1741283446792,-2821.2568,0.00010638,2]
[355560192,1741283446801,-3488.46590126,0.00010641,2]
[355560193,1741283446811,-6863.10097839,0.00010646,2]
[355560194,1741283446821,-200.0,0.00010648,2]
[355560195,1741283446830,-327.96401495,0.0001065,2]
[355560196,1741283446839,-327.96401495,0.0001065,2]
[355560197,1741283446849,-6360.57683976,0.0001065,2]
[355560198,1741283446858,-6360.57683976,0.00010657,2]
[355560199,1741283446869,-10794.01894603,0.00010658,2]
[355560200,1741283446878,-787.13713067,0.00010664,2]
[355560201,1741283446888,-3137.5334136,0.00010665,2]
[355560202,1741283446898,-217.08605289,0.00010665,2]
[355560203,1741283446907,-162.77,0.00010669,2]
[355560204,1741283446916,-5327.00376001,0.0001067,2]
[355560205,1741283446926,-10794.01894603,0.00010671,2]
[355560206,1741283446935,-2120.23397145,0.00010677,2]
[355560207,1741283446945,-10794.01894603,0.00010677,2]
[355560208,1741283446954,-200.0,0.00010679,2]
[355560209,1741283446965,-787.13713067,0.00010692,2]
[355560210,1741283446974,-191.41304537,0.00010728,2]
[355560211,1741283446983,-191.41304537,0.00010728,2]
[355560212,1741283446992,-6907.9856835,0.00010733,2]
[355560213,1741283447001,-1265.0211608,0.00010733,2]
[355560214,1741283447010,-1074.99,0.00010737,2]
[355560215,1741283447019,-113629.87252598,0.00010737,2]
[355560216,1741283460194,23623.99,0.00010065,2]
[355560217,1741283482555,-300.0,0.00010958,7]
[355560218,1741283515094,-101.6377276,0.00010958,7]
[355560219,1741283521537,-528.4627,0.000103,2]
[355560220,1741283530220,51.17419365,0.00010024,2]
[355560221,1741283530250,111.41580635,0.00010024,2]
[355560222,1741283530464,162.59,0.00010291,2]
[355560223,1741283565530,1320.74180387,0.000103,2]
[355560224,1741283565560,1439.07591251,0.000103,2]
[355560225,1741283565589,471.53938362,0.000103,2]
[355560226,1741283574105,513.85500621,0.000103,2]
[355560227,1741283574135,1057.46111967,0.000103,2]
[355560228,1741283574163,1755.05746565,0.000103,2]
[355560229,1741283574192,996.44614695,0.000103,2]
[355560230,1741283586475,179.97,0.000139,31]
[355560231,1741283586533,179.97,0.000139,31]
[355560232,1741283586602,179.97,0.000139,31]
[355560233,1741283586683,179.97,0.000139,31]
[355560234,1741283586865,179.97,0.000139,31]
[355560235,1741283586963,179.97,0.000139,31]
[355560236,1741283587027,179.97,0.000139,31]
[355560237,1741283587063,179.97,0.000139,31]
[355560238,1741283587109,179.97,0.000139,31]
[355560239,1741283587145,179.97,0.000139,31]
[355560240,1741283587257,179.97,0.000139,31]
[355560241,1741283587310,179.97,0.000139,31]
[355560242,1741283587375,179.97,0.000139,31]
[355560243,1741283587448,179.97,0.000139,31]